fUSD/lending_fUSD_20241216
["ID","MTS","AMOUNT","RATE_DAILY","PERIOD"]
[345544344,1734324632528,-500.0,0.00022119,3]
[345544346,1734324632538,-520.88,0.00022119,3]
[345544348,1734324632547,-500.0,0.00022119,3]
[345544350,1734324632556,-500.0,0.00022119,3]
[345544352,1734324632565,-500.0,0.00022119,3]
[345544353,1734324632575,-500.0,0.00022119,3]
[345544356,1734324632584,-500.0,0.00022119,3]
[345544358,1734324632593,-500.0,0.00022119,3]
[345544359,1734324632602,-500.0,0.00022119,3]
[345544361,1734324632611,-500.0,0.00022119,3]
[345544363,1734324632620,-500.0,0.00022119,3]
[345544365,1734324632630,-500.0,0.00022119,3]
[345544367,1734324632639,-500.0,0.00022119,3]
[345544369,1734324632817,-500.0,0.00022119,3]
[345544370,1734324632827,-500.0,0.00022119,3]
[345544371,1734324632836,-500.0,0.00022119,3]
[345544372,1734324632845,-500.0,0.00022119,3]
[345544373,1734324632854,-500.0,0.00022119,3]
[345544374,1734324632863,-500.0,0.00022119,3]
[345544375,1734324632872,-500.0,0.00022119,3]
[345544376,1734324632881,-500.0,0.00022119,3]
[345544377,1734324632890,-500.0,0.00022119,2]
[345544378,1734324632898,-500.0,0.00022119,3]
[345544379,1734324632907,-500.0,0.00022119,3]
[345544380,1734324632916,-500.0,0.00022119,3]
[345544381,1734324632925,-500.0,0.00022119,3]
[345544382,1734324632935,-500.0,0.00022119,3]
[345544383,1734324632945,-500.0,0.00022119,3]
[345544384,1734324632954,-500.0,0.00022119,3]
[345544385,1734324632964,-500.0,0.00022119,3]
[345544386,1734324632973,-500.0,0.00022119,3]
[345544387,1734324632982,-500.0,0.00022119,3]
[345544388,1734324632996,-500.0,0.00022119,3]
[345544389,1734324633006,-500.0,0.00022119,3]
[345544390,1734324633015,-500.0,0.00022119,3]
[345544391,1734324633025,-573.7,0.00022119,3]
[345544392,1734324633034,-500.0,0.00022119,3]
[345544393,1734324633043,-256.62,0.00022119,3]
[345544394,1734324633053,-614.85,0.00022119,3]
[345544395,1734324633063,-500.0,0.00022119,3]
[345544396,1734324633076,-285.98588721,0.00022119,3]
[345544397,1734324633086,-500.0,0.00022119,3]
[345544398,1734324633095,-500.0,0.00022119,3]
[345544399,1734324633104,-1000.0,0.00022119,30]
[345544400,1734324633115,-500.0,0.00022119,3]
[345544401,1734324633124,-500.0,0.00022119,3]
[345544402,1734324633133,-564.6,0.00022119,3]
[345544403,1734324633143,-500.0,0.00022119,3]
[345544404,1734324633153,-500.0,0.00022119,3]
[345544405,1734324633163,-500.0,0.00022119,3]
[345544406,1734324633173,-500.0,0.00022119,3]
[345544407,1734324633182,-560.29445614,0.00022119,3]
[345544408,1734324633191,-500.0,0.00022119,3]
[345544409,1734324633201,-500.0,0.00022119,3]
[345544410,1734324633210,-500.0,0.00022119,3]
[345544411,1734324633219,-500.0,0.00022119,3]
[345544412,1734324633228,-500.0,0.00022119,3]
[345544413,1734324633241,-526.91,0.00022119,3]
[345544414,1734324633251,-412.56,0.00022119,3]
[345544415,1734324633260,-500.0,0.00022119,3]
[345544416,1734324633270,-500.0,0.00022119,3]
[345544417,1734324633279,-565.38,0.00022119,3]
[345544418,1734324633289,-500.0,0.00022119,3]
[345544419,1734324633299,-500.0,0.00022119,3]
[345544420,1734324633308,-500.0,0.00022119,3]
[345544421,1734324633318,-500.0,0.00022119,3]
[345544422,1734324633328,-500.0,0.00022119,3]
[345544423,1734324633338,-500.0,0.00022119,3]
[345544424,1734324633348,-500.0,0.00022119,3]
[345544425,1734324633357,-500.0,0.00022119,3]
[345544426,1734324633368,-500.0,0.00022119,3]
[345544427,1734324633379,-500.0,0.00022119,3]
[345544428,1734324633388,-500.0,0.00022119,3]
[345544429,1734324633398,-500.0,0.00022119,3]
[345544430,1734324633409,-500.0,0.00022119,3]
[345544431,1734324633419,-500.0,0.00022119,3]
[345544432,1734324633428,-500.0,0.00022119,3]
[345544433,1734324633438,-633.24,0.00022119,3]
[345544434,1734324633447,-500.0,0.00022119,3]
[345544435,1734324633457,-500.0,0.00022119,3]
[345544436,1734324633466,-500.0,0.00022119,3]
[345544437,1734324633476,-500.0,0.00022119,3]
[345544438,1734324633486,-500.0,0.00022119,3]
[345544439,1734324633497,-500.0,0.00022119,3]
[345544440,1734324633507,-500.0,0.00022119,3]
[345544441,1734324633517,-500.0,0.00022119,3]
[345544442,1734324633526,-500.0,0.00022119,3]
[345544443,1734324633536,-500.0,0.00022119,3]
[345544444,1734324633546,-500.0,0.00022119,3]
[345544445,1734324633555,-500.0,0.00022119,3]
[345544446,1734324633565,-500.0,0.00022119,3]
[345544447,1734324633575,-572.68,0.00022119,3]
[345544448,1734324633585,-500.0,0.00022119,3]
[345544449,1734324633595,-572.31271646,0.00022119,3]
[345544450,1734324633604,-192.58910273,0.00022119,3]
[345544451,1734324633614,-500.0,0.00022119,3]
[345544452,1734324633624,-500.0,0.00022119,3]
[345544453,1734324633633,-616.77,0.00022119,3]
[345544454,1734324633643,-544.95,0.00022119,3]
[345544455,1734324633652,-500.0,0.00022119,3]
[345544456,1734324633662,-500.0,0.00022119,3]
[345544457,1734324633672,-500.0,0.00022119,3]
[345544458,1734324633681,-500.0,0.00022119,3]
[345544459,1734324633691,-500.0,0.00022119,3]
[345544460,1734324633700,-500.0,0.00022119,3]
[345544461,1734324633710,-500.0,0.00022119,3]
[345544462,1734324633719,-500.0,0.00022119,3]
[345544463,1734324633728,-500.0,0.00022119,3]
[345544464,1734324633738,-500.0,0.00022119,3]
[345544465,1734324633752,-500.0,0.00022119,3]
[345544466,1734324633762,-500.0,0.00022119,3]
[345544467,1734324633772,-500.0,0.00022119,3]
[345544468,1734324633781,-500.0,0.00022119,3]
[345544469,1734324633791,-224.09423758,0.00022119,3]
[345544470,1734324633811,-275.90576242,0.00022119,3]
[345544471,1734324633820,-500.0,0.00022119,3]
[345544472,1734324633830,-500.0,0.00022119,3]
[345544473,1734324633839,-500.0,0.00022119,3]
[345544474,1734324633849,-28.05499719,0.00022119,3]
[345544475,1734324633860,-320.25730471,0.00022119,3]
[345544476,1734324633872,-151.6876981,0.00022119,3]
[345544477,1734324633882,-323.53230195,0.00022119,3]
[345544478,1734324633893,-176.46769805,0.00022119,3]
[345544479,1734324633902,-592.23,0.00022119,3]
[345544480,1734324633912,-500.0,0.00022119,3]
[345544481,1734324633921,-500.0,0.00022119,3]
[345544482,1734324633930,-500.0,0.00022119,3]
[345544483,1734324633939,-500.0,0.00022119,3]
[345544484,1734324633949,-500.0,0.00022119,3]
[345544485,1734324633958,-500.0,0.00022119,3]
[345544486,1734324633968,-500.0,0.00022119,3]
[345544487,1734324633978,-500.0,0.00022119,3]
[345544488,1734324633987,-15.73729988,0.00022119,3]
[345544489,1734324637749,-173.02294975,0.00022114,2]
[345544490,1734324637759,-484.26270012,0.00022119,3]
[345544491,1734324637768,-500.0,0.00022119,3]
[345544492,1734324637777,-35.48927993,0.00022119,3]
[345544493,1734324637789,-299.68072007,0.00022119,3]
[345544494,1734324637798,-384.61928133,0.00022119,3]
[345544495,1734324637809,-115.38071867,0.00022119,3]
[345544496,1734324637819,-217.99240324,0.00022119,3]
[345544497,1734324637962,-334.33759676,0.00022119,3]
[345544498,1734324637971,-500.0,0.00022119,3]
[345544499,1734324637980,-553.56,0.00022119,3]
[345544500,1734324637990,-613.7,0.00022119,3]
[345544501,1734324637999,-500.0,0.00022119,3]
[345544502,1734324638008,-500.0,0.00022119,3]
[345544503,1734324638017,-500.0,0.00022119,3]
[345544504,1734324638026,-500.0,0.00022119,3]
[345544505,1734324638035,-500.0,0.00022119,3]
[345544506,1734324638044,-500.0,0.00022119,3]
[345544507,1734324638053,-500.0,0.00022119,3]
[345544508,1734324638062,-500.0,0.00022119,3]
[345544509,1734324638074,-500.0,0.00022119,3]
[345544510,1734324638084,-500.0,0.00022119,2]
[345544511,1734324638093,-260.56505019,0.00022119,2]
[345544512,1734324638103,-500.0,0.00022119,2]
[345544513,1734324638112,-500.0,0.00022119,2]
[345544514,1734324638122,-500.0,0.00022119,2]
[345544515,1734324638130,-500.0,0.00022119,2]
[345544516,1734324638140,-500.0,0.00022119,2]
[345544517,1734324638150,-500.0,0.00022119,2]
[345544518,1734324638160,-520.83032617,0.00022119,2]
[345544519,1734324638169,-341.0263,0.00022119,2]
[345544520,1734324638178,-3557.38453173,0.0002212,30]
[345544521,1734324638189,-3518.27166772,0.0002212,30]
[345544522,1734324638200,-393.01182328,0.0002212,30]
[345544523,1734324638265,-531.88382226,0.0002212,30]
[345544524,1734324638277,-1589.07529685,0.0002212,30]
[345544525,1734324638288,-7989.17572231,0.0002212,30]
[345544526,1734324639777,-3627.107697,0.0002212,30]
[345544527,1734324639790,-401.44214624,0.0002212,30]
[345544528,1734324639875,-1052.94464378,0.0002212,30]
[345544529,1734324639886,-28019.2140588,0.0002212,30]
[345544530,1734324639944,-409.46749875,0.0002212,30]
[345544531,1734324640000,-786.68,0.0002212,30]
[345544532,1734324640111,-1055.64999968,0.0002212,30]
[345544533,1734324641985,192.28607867,0.00019164,2]
[345544534,1734324642007,407.71392133,0.00019164,2]
[345544542,1734324642757,-491.16,0.00022119,2]
[345544543,1734324642767,-500.0,0.00022119,3]
[345544544,1734324642776,-6397.3587318,0.0002212,30]
[345544545,1734324642813,-3691.60518321,0.0002212,30]
[345544546,1734324643062,-179.83750195,0.0002212,30]
[345544547,1734324643088,-10.50660178,0.0002212,30]
[345544548,1734324643099,-9018.59284828,0.0002212,30]
[345544549,1734324643119,-682.36978236,0.0002212,30]
[345544565,1734324645963,-1364.70112633,0.0002212,30]
[345544566,1734324674028,158.085492,0.00019178,2]
[345544567,1734324856469,163.82,0.00010137,2]
[345544574,1734325347947,-335.41,0.00018703,2]
[345544575,1734325348059,-164.59,0.00019164,2]
[345544576,1734325348565,-335.41,0.00019164,2]
[345544577,1734325348590,-250.0,0.0002048,2]
[345544578,1734325348613,-300.0,0.00020487,2]
[345544579,1734325348638,-7129.18,0.00020488,2]
[345544580,1734325646117,-500.0,0.00019164,2]
[345544581,1734325646139,-163.57,0.00020043,2]
[345544582,1734325646164,-158.41509396,0.00020244,4]
[345544583,1734325646185,-509.13,0.00020269,2]
[345544584,1734325646206,-161.95,0.00020272,30]
[345544585,1734325646226,-504.64,0.0002035,2]
[345544586,1734325646246,-494.0,0.00020384,2]
[345544587,1734325646272,-494.74,0.00020429,2]
[345544588,1734325646292,-495.7,0.00020488,2]
[345544589,1734325646312,-502.53,0.00020488,2]
[345544590,1734325646332,-503.81,0.00020488,2]
[345544591,1734325646352,-508.27,0.00020488,2]
[345544592,1734325646374,-509.18,0.00020488,2]
[345544593,1734325646400,-499.13,0.00020488,2]
[345544594,1734325646420,-509.05,0.00020488,2]
[345544595,1734325646441,-502.27,0.00020488,2]
[345544596,1734325646461,-12881.43293219,0.00020488,2]
[345544597,1734325646481,-328.64,0.00020506,2]
[345544598,1734325646502,-328.64,0.00020511,2]
[345544599,1734325646521,-382.27,0.00020511,2]
[345544600,1734325646542,-328.64,0.00020516,2]
[345544601,1734325646562,-328.64,0.00020522,2]
[345544602,1734325646582,-328.64,0.00020527,2]
[345544603,1734325646602,-328.64,0.00020533,2]
[345544604,1734325646628,-328.64,0.00020538,2]
[345544605,1734325646649,-328.64,0.00020543,2]
[345544606,1734325646670,-328.64,0.00020549,2]
[345544607,1734325646690,-328.64,0.00020554,2]
[345544608,1734325646710,-328.64,0.0002056,2]
[345544609,1734325646730,-328.64,0.00020565,2]
[345544610,1734325646751,-154.991601,0.00020567,2]
[345544615,1734325831953,-506.76,0.00020264,2]
[345544616,1734325831964,-205.26367317,0.00020264,2]
[345544617,1734325831975,-303.52632683,0.00020264,2]
[345544618,1734325831985,-492.92,0.00020264,2]
[345544619,1734325831994,-502.79,0.00020264,2]
[345544620,1734325832004,-506.0,0.00020264,2]
[345544621,1734325832013,-503.9,0.00020264,2]
[345544622,1734325832023,-493.28,0.00020264,2]
[345544623,1734325832037,-1000.0,0.00020264,2]
[345544624,1734325832047,-351.04,0.0002028,2]
[345544625,1734325832057,-240.21,0.00020311,2]
[345544626,1734325832066,-201.22,0.00020321,2]
[345544627,1734325832075,-500.0,0.00020533,2]
[345544628,1734325832085,-500.0,0.00020533,2]
[345544629,1734325832095,-497.5,0.00020567,2]
[345544630,1734325832105,-328.64,0.0002057,2]
[345544631,1734325832114,-328.64,0.00020576,2]
[345544632,1734325832124,-328.64,0.00020581,2]
[345544633,1734325832338,-250.0,0.00020582,2]
[345544634,1734325832356,-328.64,0.00020587,2]
[345544635,1734325832366,-328.64,0.00020592,2]
[345544636,1734325832375,-153.0,0.00020594,2]
[345544637,1734325832384,-328.64,0.00020597,2]
[345544638,1734325832393,-161.17473022,0.000206,2]
[345544639,1734325832402,-328.64,0.00020603,2]
[345544640,1734325832411,-328.64,0.00020608,2]
[345544641,1734325832422,-147.10447493,0.0002062,2]
[345544642,1734325832558,-352.89552507,0.0002062,2]
[345544643,1734325832569,-511.13889382,0.00020633,2]
[345544644,1734325832579,-500.0,0.00020633,2]
[345544645,1734325832588,-6791.13007284,0.00020666,2]
[345544646,1734325832599,-644.78959212,0.00020666,2]
[345544647,1734325832610,-9915.25015491,0.00020666,2]
[345544648,1734325832621,-478.31588386,0.00020666,2]
[345544649,1734325832633,-1997.21734795,0.00020666,2]
[345544650,1734325832649,-173.29694832,0.00020666,2]
[345544651,1734325832658,-498.82,0.00020667,2]
[345544652,1734325832667,-491.95,0.00020668,2]
[345544653,1734325832677,-508.92,0.00020669,2]
[345544654,1734325832686,-493.62,0.00020831,2]
[345544655,1734325832695,-250.0,0.00020834,2]
[345544656,1734325832704,-807.50139985,0.00020867,2]
[345544657,1734325832714,-9999.999999,0.00020888,2]
[345544658,1734325832723,-335.41,0.00020967,2]
[345544659,1734325832733,-499.58,0.00020978,2]
[345544660,1734325832743,-240.21,0.00021063,2]
[345544661,1734325832752,-337.76449542,0.00021081,2]
[345544662,1734325832761,-165.56,0.00021163,2]
[345544663,1734325832771,-497.31,0.00021166,2]
[345544664,1734325832781,-652.0,0.00021207,2]
[345544665,1734325832790,-201.22,0.00021337,2]
[345544666,1734325832800,-744.8,0.00021369,2]
[345544667,1734325832810,-495.933,0.0002137,2]
[345544668,1734325832819,-807.50139983,0.00021674,2]
[345544669,1734325832828,-240.21,0.00021814,2]
[345544670,1734325832837,-1542.0,0.00021825,2]
[345544671,1734325832847,-495.74,0.000219,2]
[345544672,1734325832866,-491.05,0.000219,2]
[345544673,1734325832876,-3000.0,0.000219,2]
[345544674,1734325832887,-200.0,0.000219,2]
[345544675,1734325832896,-150.0,0.00021913,2]
[345544676,1734325832907,-1003.0,0.00022,5]
[345544677,1734325832917,-753.5179,0.0002202,2]
[345544678,1734325832927,-545.0501,0.0002202,2]
[345544679,1734325832937,-162.10911604,0.0002202,2]
[345544680,1734325832947,-417.15683646,0.0002202,2]
[345544681,1734325832957,-178.67917025,0.0002202,2]
[345544682,1734325832967,-1542.0,0.0002205,2]
[345544683,1734325832976,-505.77,0.00022052,2]
[345544684,1734325832986,-1000.0,0.00022082,2]
[345544685,1734325832995,-162.10911604,0.00022096,2]
[345544686,1734325833006,-3236.76971934,0.000221,30]
[345544687,1734325833024,-592.36206145,0.000221,30]
[345544688,1734325833043,-45243.86821921,0.000221,30]
[345544689,1734325833053,-150.83,0.0002211,2]
[345544690,1734325833064,-1500.0,0.00022111,2]
[345544691,1734325833074,-183.69710551,0.00022119,2]
[345544692,1734325833084,-297.04,0.00022119,2]
[345544693,1734325833094,-500.0,0.00022119,3]
[345544694,1734325833104,-187.09218936,0.00022119,3]
[345544695,1734325833114,-647.25661871,0.00022119,3]
[345544696,1734325833125,-500.0,0.00022119,3]
[345544697,1734325833135,-500.0,0.00022119,3]
[345544698,1734325833146,-500.0,0.00022119,3]
[345544699,1734325833156,-500.0,0.00022119,2]
[345544700,1734325833166,-500.0,0.00022119,3]
[345544701,1734325833175,-189.94,0.00022119,3]
[345544702,1734325833185,-305.02,0.00022119,3]
[345544703,1734325833195,-170.42,0.00022119,3]
[345544704,1734325833205,-3000.0,0.00022119,2]
[345544705,1734325833215,-605.94,0.00022119,3]
[345544706,1734325833225,-331.22,0.00022119,3]
[345544707,1734325833235,-500.0,0.00022119,3]
[345544708,1734325833244,-500.0,0.00022119,3]
[345544709,1734325833254,-500.0,0.00022119,3]
[345544710,1734325833264,-500.0,0.00022119,3]
[345544711,1734325833274,-500.0,0.00022119,3]
[345544712,1734325833286,-377.41597123,0.00022119,3]
[345544713,1734325833297,-500.0,0.00022119,2]
[345544714,1734325833308,-159.03277861,0.00022119,2]
[345544715,1734325833319,-500.0,0.00022119,2]
[345544716,1734325833328,-500.0,0.00022119,2]
[345544717,1734325833338,-499.08375275,0.00022119,2]
[345544718,1734325833348,-500.0,0.00022119,2]
[345544719,1734325833358,-106.68351597,0.00022119,2]
[345544720,1734325833370,-393.31648403,0.00022119,2]
[345544721,1734325833380,-500.0,0.00022119,2]
[345544722,1734325833390,-1884.92792806,0.00022119,2]
[345544723,1734325833403,-4959.83620066,0.00022119,2]
[345544724,1734325833413,-6319.79345942,0.0002212,4]
[345544754,1734325837889,-508.03,0.00020264,2]
[345544755,1734325837899,-254.46754093,0.00022,4]
[345544756,1734325838354,-745.53245907,0.00022,4]
[345544757,1734325838364,-3331.90860972,0.0002212,4]
[345544758,1734325838376,-4225.0,0.0002212,4]
[345544760,1734325838392,-4492.15502186,0.0002212,4]
[345544762,1734325838403,-902.63081299,0.0002212,4]
[345544764,1734325838414,-13318.76281526,0.0002212,4]
[345544765,1734325838428,-918.803945,0.0002212,4]
[345544767,1734325838439,-18936.06547736,0.0002212,4]
[345544768,1734325838450,-10576.68958452,0.0002212,4]
[345544769,1734325838461,-36420.0,0.0002212,4]
[345544770,1734325838473,-2896.39516468,0.0002212,4]
[345544771,1734325838485,-1486.5746006,0.0002212,4]
[345544772,1734325838496,-1245.37967442,0.0002212,4]
[345544773,1734325838507,-899.84873347,0.0002212,4]
[345544920,1734325840055,-1049.41419005,0.0002212,4]
[345544923,1734325840068,-1564.25660773,0.0002212,4]
[345544925,1734325840080,-1007.52312096,0.0002212,4]
[345544930,1734325840114,-9401.825808,0.0002212,4]
[345544932,1734325840126,-323738.3228767,0.0002212,4]
[345544937,1734325840169,-427.036004,0.0002212,4]
[345544939,1734325840181,-1800.0,0.0002212,4]
[345544951,1734325840279,-119676.35591071,0.0002212,4]
[345544953,1734325840297,-37205.24175886,0.0002212,4]
[345544957,1734325840336,-193329.40211064,0.0002212,4]
[345544958,1734325840346,-211285.00474825,0.0002212,30]
[345545211,1734325842952,-500.0,0.00022119,3]
[345545213,1734325842961,-500.0,0.00022119,3]
[345545215,1734325842970,-3827.89221314,0.0002212,30]
[345545224,1734325843051,-3559.41570791,0.0002212,30]
[345545226,1734325843062,-386.33,0.0002212,30]
[345545244,1734325843214,-1187.27711577,0.0002212,30]
[345545246,1734325843226,-1144.71466737,0.0002212,30]
[345545248,1734325843235,-1142.93254663,0.0002212,2]
[345545250,1734325843244,-200.0,0.0002212,2]
[345545252,1734325843253,-178.67917022,0.00022147,2]
[345545254,1734325843263,-7048.97528843,0.00022163,2]
[345545256,1734325843272,-79.59890495,0.00022172,2]
[345545322,1734325843883,500.0,0.00019164,2]
[345545551,1734325846208,-82.51021109,0.00022172,2]
[345545553,1734325846219,-381.8680061,0.00022173,2]
[345545555,1734325846229,-161.36812628,0.000222,2]
[345545556,1734325846238,-3882.0,0.00022233,2]
[345545558,1734325846248,-2519.801,0.00022233,2]
[345545559,1734325846257,-150.0,0.00022233,2]
[345545561,1734325846267,-1034.295,0.00022233,2]
[345545563,1734325846276,-150.0,0.00022235,2]
[345545565,1734325846286,-150.0,0.00022237,2]
[345545566,1734325846295,-150.0,0.00022245,2]
[345545568,1734325846305,-162.10911604,0.00022248,2]
[345545570,1734325846314,-150.0,0.00022255,2]
[345545571,1734325846323,-150.0,0.00022269,2]
[345545573,1734325846332,-150.0,0.0002227,2]
[345545575,1734325846341,-178.67917022,0.00022273,2]
[345545577,1734325846350,-150.43641337,0.00022274,2]
[345545578,1734325846359,-1542.0,0.00022275,2]
[345545580,1734325846369,-150.0,0.00022288,2]
[345545582,1734325846378,-200.0,0.0002229,2]
[345545583,1734325846387,-150.0,0.00022295,2]
[345545585,1734325846397,-257.37529397,0.000223,2]
[345545587,1734325846406,-166.4925194,0.000223,2]
[345545589,1734325846415,-150.0,0.00022305,2]
[345545591,1734325846425,-150.0,0.0002231,2]
[345545592,1734325846437,-150.0,0.00022311,2]
[345545594,1734325846446,-150.0,0.00022314,2]
[345545596,1734325846456,-162.10911604,0.00022324,2]
[345545598,1734325846466,-150.0,0.00022329,2]
[345545599,1734325846475,-200.0,0.00022335,2]
[345545601,1734325846484,-3060.95379848,0.00022336,2]
[345545603,1734325846494,-3060.95379848,0.00022336,2]
[345545605,1734325846504,-200.0,0.00022338,2]
[345545606,1734325846513,-7058.15094912,0.00022339,2]
[345545608,1734325846522,-200.0,0.00022341,2]
[345545610,1734325846531,-200.0,0.00022341,2]
[345545612,1734325846543,-150.0,0.00022341,2]
[345545613,1734325846553,-150.0,0.00022343,2]
[345545615,1734325846562,-7058.15094912,0.00022344,2]
[345545617,1734325846571,-11788.60156938,0.00022346,2]
[345545619,1734325846580,-11788.60156938,0.00022348,2]
[345545620,1734325846589,-2885.665,0.00022352,2]
[345545622,1734325846599,-180.877,0.00022352,2]
[345545624,1734325846608,-201.22,0.00022354,2]
[345545626,1734325846618,-11788.60156938,0.00022361,2]
[345545627,1734325846627,-200.0,0.00022361,2]
[345545629,1734325846636,-3060.95379848,0.0002237,2]
[345545631,1734325846645,-150.0,0.00022372,2]
[345545633,1734325846655,-150.0,0.00022372,2]
[345545634,1734325846664,-3060.95379848,0.00022374,2]
[345545636,1734325846673,-7058.15094912,0.00022375,2]
[345545638,1734325846682,-7058.15094912,0.00022377,2]
[345545640,1734325846692,-150.0,0.00022377,2]
[345545641,1734325846701,-200.0,0.00022381,2]
[345545643,1734325846710,-7058.15094912,0.00022382,2]
[345545645,1734325846719,-800.0,0.00022384,2]
[345545647,1734325846728,-11788.60156938,0.0002239,2]
[345545649,1734325846737,-3060.95379848,0.00022392,2]
[345545650,1734325846746,-11788.60156938,0.00022392,2]
[345545652,1734325846757,-7058.15094912,0.00022393,2]
[345545654,1734325846767,-3060.95379848,0.00022395,2]
[345545656,1734325846777,-11788.60156938,0.00022396,2]
[345545657,1734325846786,-150.0,0.00022397,2]
[345545659,1734325846795,-4354.3079,0.00022399,2]
[345545661,1734325846805,-500.0,0.00022399,3]
[345545663,1734325846813,-500.0,0.00022399,3]
[345545664,1734325846822,-504.19362479,0.00022399,3]
[345545666,1734325846832,-500.0,0.00022399,3]
[345545668,1734325846841,-500.0,0.00022399,3]
[345545670,1734325846850,-500.0,0.00022399,3]
[345545671,1734325846860,-500.0,0.00022399,3]
[345545672,1734325846869,-500.0,0.00022399,3]
[345545673,1734325846878,-150.0,0.00022399,2]
[345545674,1734325846887,-200.0,0.000224,2]
[345545675,1734325846897,-173.9336367,0.000224,2]
[345545676,1734325846906,-514.1,0.000224,2]
[345545677,1734325846915,-162.10911604,0.000224,2]
[345545678,1734325846925,-404.52171976,0.000224,2]
[345545679,1734325846935,-575.89,0.000224,31]
[345545680,1734325846944,-575.89,0.000224,31]
[345545681,1734325846954,-575.89,0.000224,31]
[345545682,1734325846964,-575.89,0.000224,31]
[345545684,1734325846974,-575.89,0.000224,31]
[345545686,1734325846983,-575.89,0.000224,31]
[345545688,1734325846993,-575.89,0.000224,31]
[345545690,1734325847002,-575.89,0.000224,31]
[345545692,1734325847012,-575.89,0.000224,31]
[345545694,1734325847021,-575.89,0.000224,31]
[345545696,1734325847031,-575.89,0.000224,31]
[345545698,1734325847043,-575.89,0.000224,31]
[345545700,1734325847053,-575.89,0.000224,31]
[345545702,1734325847067,-575.89,0.000224,31]
[345545704,1734325847076,-575.89,0.000224,31]
[345545706,1734325847085,-575.89,0.000224,31]
[345545708,1734325847095,-1973.66207804,0.000224,2]
[345545710,1734325847104,-178.67917022,0.000224,2]
[345545712,1734325847114,-357.74401572,0.000224,2]
[345545714,1734325847123,-7472.50296304,0.000224,2]
[345545716,1734325847133,-150.0,0.0002241,2]
[345545718,1734325847142,-150.0,0.00022411,2]
[345545720,1734325847152,-150.0,0.0002242,2]
[345545722,1734325847162,-150.0,0.00022426,2]
[345545724,1734325847171,-150.0,0.00022434,2]
[345545726,1734325847181,-150.0,0.00022437,2]
[345545728,1734325847190,-150.0,0.00022439,2]
[345545730,1734325847199,-150.0,0.00022443,2]
[345545732,1734325847208,-150.0,0.00022448,2]
[345545734,1734325847218,-500.0,0.00022453,3]
[345545736,1734325847226,-150.0,0.00022454,2]
[345545738,1734325847239,-150.0,0.00022456,2]
[345545740,1734325847250,-150.0,0.00022456,2]
[345545742,1734325847259,-350.0,0.00022465,2]
[345545744,1734325847268,-358.27607024,0.00022465,2]
[345545746,1734325847278,-5000.0,0.00022465,20]
[345545748,1734325847288,-553.30451879,0.00022465,3]
[345545750,1734325847298,-28358.0,0.00022466,2]
[345545752,1734325847307,-17419.0,0.00022466,2]
[345545754,1734325847316,-36027.0,0.00022466,2]
[345545756,1734325847325,-501.80937079,0.00022473,2]
[345545758,1734325847334,-500.0,0.00022473,2]
[345545760,1734325847344,-150.0,0.00022479,2]
[345545762,1734325847353,-807.50139983,0.0002248,2]
[345545764,1734325847362,-150.0,0.00022485,2]
[345545766,1734325847372,-96089.76079404,0.0002249,5]